bitfinex/quotes_SOLUSD_20241111
["timestamp","ask_amount","ask_price","bid_price","bid_amount"]
[1731325482165,16.83291667,216.05,215.99,0.25098]
[1731325482469,16.83291667,216.04,215.99,0.25098]
[1731325482970,16.83291667,216.04,216.0,16.2036]
[1731325483280,16.83291667,216.04,216.01,0.12549]
[1731325484072,16.83291667,216.05,216.01,0.12549]
[1731325484259,16.83291667,216.05,216.02,4.6292]
[1731325485765,16.83291667,216.05,216.02,16.2022]
[1731325486864,16.83291667,216.1,216.04,16.83291667]
[1731325487058,16.83291667,216.1,216.05,0.12549]
[1731325487374,16.83291667,216.12,216.07,0.12549]
[1731325487768,16.83291667,216.11,216.07,4.75339]
[1731325487959,4.6265,216.15,216.07,4.75339]
[1731325487960,16.83291667,216.1,216.07,4.75339]
[1731325488653,16.83291667,216.08,216.02,11.5727]
[1731325488960,16.83291667,216.03,215.99,16.2044]
[1731325490060,16.83291667,216.03,216.0,0.12549]
[1731325490669,16.83291667,216.02,215.99,16.2044]
[1731325490852,4.6272,216.11,215.99,33.03731667]
[1731325491053,16.83291667,216.06,216.0,16.83291667]
[1731325491263,16.83291667,216.05,215.99,33.03731667]
[1731325491977,4.6268,216.13,216.0,0.12549]
[1731325492272,16.83291667,216.05,216.0,0.25098]
[1731325493097,16.83291667,216.06,216.01,16.2029]
[1731325493373,16.83291667,216.07,216.02,0.12549]
[1731325493578,16.83291667,216.06,216.02,0.12549]
[1731325494298,16.83291667,216.06,216.04,0.12549]
[1731325495365,16.83291667,216.07,216.04,0.12549]
[1731325495568,16.83291667,216.07,216.02,0.12549]
[1731325495866,16.83291667,216.07,216.02,16.32769]
[1731325496259,16.83291667,216.08,216.02,16.32769]
[1731325496660,16.83291667,216.07,216.02,16.32769]
[1731325497456,16.83291667,216.06,216.02,16.32769]
[1731325498464,16.83291667,216.07,216.02,16.32769]
[1731325501461,16.83291667,216.03,215.97,11.5752]
[1731325501799,16.83291667,216.0,215.97,16.2054]
[1731325501970,4.6281,216.07,215.97,33.03831667]
[1731325502174,20.0,216.13,215.97,16.2054]
[1731325502493,70.0,216.24,215.97,16.2054]
[1731325502494,6.4389,216.2,216.05,6.5741]
[1731325503085,6.4389,216.2,216.07,0.25098]
[1731325503380,23.3146,216.32,216.07,0.25098]
[1731325503381,10.75656134,216.21,216.16,0.12549]
[1731325503589,10.75656134,216.2,216.16,0.12549]
[1731325503963,10.75656134,216.2,216.15,4.6262]
[1731325504170,10.75656134,216.2,216.16,0.12549]
[1731325504787,16.80189114,216.2,216.16,0.12549]
[1731325505667,11.5579,216.31,216.16,0.12549]
[1731325505668,16.80189114,216.22,216.16,0.12549]
[1731325505862,16.80189114,216.21,216.16,0.12549]
[1731325506065,4.6232,216.3,216.16,21.67897114]
[1731325506066,16.80189114,216.22,216.16,21.67897114]
[1731325506586,4.6232,216.3,216.16,4.87708]
[1731325506587,16.80189114,216.21,216.16,4.87708]
[1731325506767,16.80189114,216.23,216.16,33.24447114]
[1731325507394,4.6232,216.3,216.2,0.12549]
[1731325507565,16.80189114,216.27,216.21,4.6251]
[1731325507767,16.80189114,216.27,216.2,28.49038114]
[1731325507974,16.80189114,216.25,216.2,11.68849]
[1731325508166,16.80189114,216.24,216.2,11.68849]
[1731325508367,16.80189114,216.24,216.19,0.12549]
[1731325508791,16.80189114,216.25,216.19,16.92738114]
[1731325509092,16.80189114,216.24,216.19,0.12549]
[1731325509897,16.80189114,216.2,216.1,26.5968]
[1731325510069,16.80189114,216.19,216.13,16.80189114]
[1731325510569,16.80189114,216.16,216.1,26.5968]
[1731325510769,16.80189114,216.16,216.1,31.2242]
[1731325511074,16.80189114,216.16,216.1,48.02609114]
[1731325511477,16.80189114,216.17,216.11,16.80189114]
[1731325511886,16.80189114,216.17,216.11,21.42899114]
[1731325512094,22.88849114,216.24,216.11,21.42899114]
[1731325512095,16.80189114,216.16,216.11,4.6271]
[1731325512299,4.6258,216.18,216.09,16.80189114]
[1731325512300,16.80189114,216.15,216.09,16.80189114]
[1731325512590,16.80189114,216.11,216.06,4.79232814]
[1731325512793,16.80189114,216.1,216.06,4.79232814]
[1731325512998,16.80189114,216.08,216.01,16.80189114]
[1731325513296,16.80189114,216.07,216.01,33.00469114]
[1731325513467,16.80189114,216.09,216.03,16.80189114]
[1731325513672,16.80189114,216.1,216.04,16.80189114]
[1731325513870,16.80189114,216.1,216.04,21.43049114]
[1731325514417,4.6271,216.12,216.04,21.43049114]
[1731325514418,16.80189114,216.13,216.07,16.80189114]
[1731325514689,4.6249,216.22,216.05,16.80189114]
[1731325514690,16.80189114,216.12,216.05,16.80189114]
[1731325514890,16.80189114,216.09,216.05,0.12549]
[1731325515192,16.80189114,216.09,216.04,16.2005]
[1731325515686,16.80189114,216.08,216.04,11.5719]
[1731325515895,16.80189114,216.09,216.04,16.2006]
[1731325516092,16.80189114,216.08,216.04,16.2006]
[1731325516501,16.80189114,216.06,216.04,11.5719]
[1731325516697,16.80189114,216.06,216.01,4.79457613]
[1731325516989,16.80189114,216.06,216.01,4.6293]
[1731325517194,16.80189114,216.03,215.96,12.00927261]
[1731325517386,16.80189114,216.02,215.96,28.81116375]
[1731325517569,16.80189114,216.02,215.96,33.60677802]
[1731325517772,16.80189114,215.99,215.97,16.2058]
[1731325517976,16.80189114,216.0,215.96,16.80488688]
[1731325518390,16.80189114,215.99,215.96,12.00927261]
[1731325518984,16.80189114,215.99,215.96,16.63967261]
[1731325519197,16.80189114,215.97,215.96,12.00927261]
[1731325522589,66.80189114,215.97,215.96,12.00927261]
[1731325522805,90.57877514,215.97,215.96,12.00927261]
[1731325525381,20.0,215.94,215.89,10.0]
[1731325525579,16.80189114,215.9,215.89,10.0]
[1731325526394,20.0,215.94,215.89,10.0]
[1731325526579,21.43359114,215.9,215.89,10.0]
[1731325532180,16.80189114,215.9,215.89,10.0]
[1731325532695,16.80189114,215.91,215.89,14.6319]
[1731325532999,16.80189114,215.91,215.89,10.0]
[1731325533196,16.80189114,215.92,215.89,10.0]
[1731325533397,16.80189114,215.93,215.89,14.6319]
[1731325533584,16.80189114,215.92,215.89,10.0]
[1731325534186,16.80189114,215.91,215.89,10.0]
[1731325534388,16.80189114,215.9,215.89,10.0]
[1731325535801,16.80189114,215.91,215.89,10.0]
[1731325535981,16.80189114,215.93,215.89,14.6318]
[1731325536183,16.80189114,215.95,215.89,14.6318]
[1731325536387,16.80189114,215.95,215.89,26.2117]
[1731325536898,16.80189114,215.93,215.89,26.2117]
[1731325537407,16.80189114,215.93,215.89,21.5799]
[1731325537706,16.80189114,215.92,215.89,21.5799]
[1731325538083,16.80189114,215.93,215.89,21.5799]
[1731325539200,0.1,216.03,215.89,21.5799]
[1731325539201,16.80189114,215.98,215.92,16.80189114]
[1731325539402,16.4006,216.04,215.89,21.5799]
[1731325539611,16.2006,216.04,215.89,26.2118]
[1731325540304,16.80189114,215.95,215.89,26.2118]
[1731325540804,16.80189114,215.98,215.91,16.80189114]
[1731325541008,4.6298,216.0,215.92,16.80189114]
[1731325541009,16.80189114,215.99,215.92,16.80189114]
[1731325541303,21.43169114,216.0,215.93,16.80189114]
[1731325541495,16.80189114,216.02,215.95,16.80189114]
[1731325542475,16.80189114,216.02,215.96,0.23112143]
[1731325542801,16.80189114,216.05,215.98,16.80189114]
[1731325543009,16.80189114,216.02,215.97,4.6302]
[1731325543196,16.80189114,216.02,215.99,0.23112143]
[1731325543691,16.80189114,216.03,215.99,0.46225905]
[1731325543899,16.80189114,216.02,215.99,0.46225905]
[1731325544197,16.80189114,216.02,215.99,0.23113762]
[1731325544594,16.80189114,216.01,215.99,0.23113762]
[1731325545013,16.80189114,216.01,215.97,11.5756]
[1731325545203,16.80189114,216.01,215.97,16.2058]
[1731325545909,16.80189114,215.98,215.93,39.985784]
[1731325546415,16.80189114,215.98,215.93,16.2089]
[1731325546582,16.80189114,216.0,215.93,33.01079114]
[1731325547896,16.80189114,215.99,215.93,16.2089]
[1731325548307,16.80189114,215.98,215.93,16.2089]
[1731325548704,16.80189114,215.99,215.93,16.2089]
[1731325549304,16.80189114,215.98,215.93,16.2089]
[1731325549610,16.80189114,216.02,215.95,16.80189114]
[1731325550304,16.80189114,215.98,215.93,16.2089]
[1731325550819,16.80189114,216.01,215.94,16.80189114]
[1731325551314,16.80189114,216.02,215.95,28.37859114]
[1731325551515,16.80189114,216.04,215.97,16.80189114]
[1731325551693,16.80189114,216.06,215.99,16.80189114]
[1731325551892,16.80189114,216.08,216.01,16.80189114]
[1731325552100,16.80189114,216.09,216.02,16.80189114]
[1731325552307,16.80189114,216.1,216.03,16.80189114]
[1731325553195,16.80189114,216.11,216.04,28.37379114]
[1731325553423,16.80189114,216.13,216.06,16.80189114]
[1731325553710,16.80189114,216.14,216.07,16.80189114]
[1731325553916,16.80189114,216.14,216.08,16.80189114]
[1731325554416,16.80189114,216.1,216.04,11.5719]
[1731325557099,16.80189114,216.01,215.98,4.6298]
[1731325557414,16.80189114,216.02,215.97,11.5755]
[1731325558414,16.80189114,216.02,215.97,16.2057]
[1731325558619,16.80189114,216.01,215.97,16.2057]
[1731325559325,16.80189114,216.01,215.97,11.5755]
[1731325559490,16.80189114,216.0,215.95,20.5245]
[1731325559919,16.80189114,216.01,215.95,32.1012]
[1731325560890,16.80189114,215.99,215.95,16.2072]
[1731325561090,16.80189114,215.97,215.91,28.38069114]
[1731325561493,16.80189114,215.97,215.91,33.01219114]
[1731325561694,16.80189114,215.96,215.91,16.2103]
[1731325561902,4.629,216.03,215.91,16.2103]
[1731325561903,16.80189114,215.93,215.91,16.2103]
[1731325562114,16.80189114,215.94,215.91,16.2103]
[1731325562315,16.80189114,215.95,215.91,16.2103]
[1731325562524,16.80189114,215.94,215.91,16.2103]
[1731325563313,16.80189114,215.96,215.91,16.2103]
[1731325564019,16.80189114,215.99,215.93,16.80189114]
[1731325564223,15.4508,216.12,215.98,16.80189114]
[1731325564423,16.80189114,216.06,216.0,16.80189114]
[1731325564602,16.80189114,216.04,216.01,4.6294]
[1731325565120,16.80189114,216.05,216.01,4.6294]
[1731325565803,16.80189114,216.02,216.0,11.5736]
[1731325565998,16.80189114,216.01,216.0,11.5736]
[1731325566516,16.80189114,216.02,216.0,11.5736]
[1731325567513,4.6282,216.07,216.0,11.5736]
[1731325567514,16.80189114,216.03,216.0,11.5736]
[1731325568102,16.80189114,216.04,216.0,11.5736]
[1731325568415,16.80189114,216.08,216.01,16.80189114]
[1731325569601,16.16906603,216.08,216.02,16.2022]
[1731325570023,16.04853288,216.08,216.02,16.2022]
[1731325570221,16.80189114,216.1,216.03,40.57877514]
[1731325570410,16.80189114,216.1,216.03,16.80189114]
[1731325570616,16.80189114,216.07,216.02,16.2022]
[1731325572021,16.80189114,216.04,216.02,11.573]
[1731325572326,16.80189114,216.03,216.0,4.6295]
[1731325572621,16.90189114,216.12,215.95,4.6305]
[1731325572622,16.80189114,216.01,215.95,4.6305]
[1731325572813,16.80189114,215.97,215.94,11.5772]
[1731325573022,16.80189114,215.97,215.94,16.2081]
[1731325573409,16.80189114,216.01,215.95,16.80189114]
[1731325573809,16.80189114,216.01,215.96,16.2066]
[1731325574721,16.80189114,216.02,215.96,16.2066]
[1731325575511,16.80189114,216.01,215.96,16.2066]
[1731325575911,16.80189114,216.01,215.94,16.80189114]
[1731325576404,16.80189114,216.01,215.95,16.80189114]
[1731325576713,16.80189114,216.01,215.9,44.19547222]
[1731325576714,16.80189114,216.03,215.96,16.80189114]
[1731325576903,16.80189114,216.04,215.97,16.80189114]
[1731325577614,16.80189114,216.06,215.99,16.80189114]
[1731325577922,16.80189114,216.07,216.0,16.80189114]
[1731325578102,16.80189114,216.07,216.01,16.80189114]
[1731325578522,16.80189114,216.09,216.02,16.80189114]
[1731325578908,16.80189114,216.08,216.01,40.57877514]
[1731325579207,16.80189114,216.09,216.02,16.80189114]
[1731325579414,4.6267,216.14,216.02,16.80189114]
[1731325579415,16.80189114,216.08,216.02,16.80189114]
[1731325579622,16.80189114,216.09,216.02,16.80189114]
[1731325579815,16.80189114,216.08,216.02,16.80189114]
[1731325580029,16.80189114,216.08,216.03,16.2013]
[1731325580814,16.80189114,216.08,216.02,16.80189114]
[1731325581321,16.80189114,216.09,216.02,16.80189114]
[1731325581529,16.80189114,216.1,216.03,16.80189114]
[1731325581707,16.80189114,216.09,216.02,16.80189114]
[1731325582322,16.80189114,216.09,216.03,23.776884]
[1731325583412,16.80189114,216.09,216.03,39.978184]
[1731325583612,16.80189114,216.11,216.04,16.80189114]
[1731325583814,16.80189114,216.11,216.05,16.1998]
[1731325584019,16.80189114,216.13,216.06,16.80189114]
[1731325584224,16.80189114,216.12,216.05,33.00169114]
[1731325584629,16.80189114,216.12,216.06,16.80189114]
[1731325585811,16.80189114,216.11,216.05,16.80189114]
[1731325586010,16.80189114,216.11,216.04,16.80189114]
[1731325586316,16.80189114,216.12,216.05,16.80189114]
[1731325586712,16.80189114,216.14,216.07,16.80189114]
[1731325587220,16.80189114,216.13,216.07,23.776884]
[1731325588041,16.80189114,216.13,216.08,16.1976]
[1731325588837,16.80189114,216.09,216.04,11.5716]
[1731325589129,16.80189114,216.06,216.04,16.2001]
[1731325589641,0.1,216.18,216.04,16.2001]
[1731325589642,16.80189114,216.07,216.04,16.2001]
[1731325589812,16.80189114,216.08,216.04,16.2001]
[1731325590141,16.80189114,216.08,216.04,11.5716]
[1731325590518,16.80189114,216.07,216.04,11.5716]
[1731325591107,16.80189114,216.08,216.04,11.5716]
[1731325591626,16.80189114,216.09,216.04,11.5716]
[1731325591858,16.80189114,216.1,216.04,11.5716]
[1731325592027,16.80189114,216.12,216.05,16.80189114]
[1731325592207,16.80189114,216.12,216.04,11.5716]
[1731325592208,16.80189114,216.1,216.04,11.5716]
[1731325592615,16.80189114,216.11,216.04,28.37349114]
[1731325593142,16.80189114,216.11,216.04,33.00219114]
[1731325593727,11.6638,216.2,216.04,33.00219114]
[1731325593728,24.6257,216.18,216.06,16.80189114]
[1731325593927,16.80189114,216.13,216.06,16.80189114]
[1731325594232,24.6257,216.18,216.04,16.2003]
[1731325594233,16.80189114,216.14,216.07,16.80189114]
[1731325595016,16.80189114,216.14,216.08,16.1976]
[1731325595230,16.80189114,216.16,216.09,16.80189114]
[1731325595738,16.80189114,216.15,216.08,32.99949114]
[1731325595916,16.80189114,216.16,216.09,40.57877514]
[1731325596112,16.80189114,216.17,216.1,16.80189114]
[1731325596316,16.80189114,216.16,216.09,40.57877514]
[1731325596934,16.80189114,216.17,216.1,16.80189114]
[1731325597139,16.80189114,216.17,216.11,16.1953]
[1731325597919,16.80189114,216.16,216.11,16.1953]
[1731325598137,16.80189114,216.15,216.11,16.1953]
[1731325599625,16.80189114,216.15,216.11,11.5681]
[1731325599936,16.80189114,216.16,216.11,11.5681]
[1731325600245,16.80189114,216.17,216.11,11.5681]
[1731325600443,16.80189114,216.18,216.11,28.36999114]
[1731325601233,16.80189114,216.21,216.14,16.80189114]
[1731325601547,16.80189114,216.21,216.15,16.80189114]
[1731325601749,16.80189114,216.22,216.16,32.99359114]
[1731325603436,16.80189114,216.22,216.16,11.5655]
[1731325603959,16.80189114,216.22,216.16,28.36739114]
[1731325604944,16.80189114,216.19,216.12,16.80189114]
[1731325605149,16.80189114,216.15,216.12,11.5675]
[1731325605331,16.80189114,216.16,216.12,11.5675]
[1731325606144,16.80189114,216.17,216.12,16.1945]
[1731325606453,16.80189114,216.18,216.12,16.1945]
[1731325607053,16.80189114,216.22,216.16,16.80189114]
[1731325607431,16.80189114,216.22,216.15,16.80189114]
[1731325607650,16.80189114,216.2,216.14,16.80189114]
[1731325607849,16.80189114,216.19,216.12,32.99639114]
[1731325608057,16.80189114,216.19,216.13,16.80189114]
[1731325608932,16.80189114,216.2,216.13,16.80189114]
[1731325610259,16.80189114,216.24,216.18,16.80189114]
[1731325610658,11.5588,216.29,216.18,16.80189114]
[1731325610659,4.6236,216.28,216.18,16.80189114]
[1731325610867,16.80189114,216.24,216.18,16.80189114]
[1731325611245,4.6236,216.28,216.15,23.776884]
[1731325611548,21.4522,216.32,216.15,23.776884]
[1731325611549,16.80189114,216.29,216.23,16.80189114]
[1731325611752,16.80189114,216.28,216.22,16.80189114]
[1731325612056,16.80189114,216.27,216.21,16.80189114]
[1731325612438,16.80189114,216.27,216.22,4.6249]
[1731325612656,16.80189114,216.24,216.18,21.42739114]
[1731325612960,16.80189114,216.24,216.18,16.1899]
[1731325613151,16.80189114,216.25,216.19,16.80189114]
[1731325613560,16.80189114,216.24,216.18,32.99179114]
[1731325613755,16.80189114,216.24,216.18,16.1899]
[1731325614055,16.80189114,216.21,216.16,4.6261]
[1731325614249,0.1,216.3,216.14,16.1927]
[1731325614250,16.80189114,216.18,216.14,16.1927]
[1731325614755,16.80189114,216.18,216.15,0.73428472]
[1731325614756,13.54449835,216.18,216.15,0.73428472]
[1731325614962,16.80189114,216.19,216.13,16.80189114]
[1731325615160,16.80189114,216.2,216.13,16.80189114]
[1731325615540,16.80189114,216.19,216.13,16.80189114]
[1731325615740,11.5596,216.27,216.07,16.1984]
[1731325615741,16.80189114,216.14,216.07,16.1984]
[1731325615953,16.80189114,216.15,216.09,16.80189114]
[1731325616664,16.80189114,216.15,216.07,16.1984]
[1731325616665,16.80189114,216.16,216.1,16.80189114]
[1731325617554,16.80189114,216.15,216.09,16.80189114]
[1731325617865,16.80189114,216.15,216.1,11.5684]
[1731325618646,16.80189114,216.14,216.1,11.5684]
[1731325620252,22.7467,216.2,216.1,28.37029114]
[1731325620253,4.6261,216.17,216.1,28.37029114]
[1731325620464,16.80189114,216.14,216.1,11.5684]
[1731325620665,4.6261,216.17,216.1,11.5684]
[1731325620666,16.80189114,216.15,216.1,11.5684]
[1731325620843,16.80189114,216.14,216.1,11.5684]
[1731325621043,16.80189114,216.15,216.1,11.5684]
[1731325621261,16.80189114,216.18,216.11,16.80189114]
[1731325621476,16.80189114,216.18,216.12,16.80189114]
[1731325622069,16.80189114,216.19,216.13,16.80189114]
[1731325622448,16.80189114,216.21,216.14,16.80189114]
[1731325622660,16.80189114,216.21,216.15,16.80189114]
[1731325623071,16.5083717,216.21,216.15,16.80189114]
[1731325623260,16.5083717,216.21,216.08,0.2]
[1731325623261,16.5083717,216.21,216.16,4.6262]
[1731325624873,16.80189114,216.22,216.15,16.80189114]
[1731325625250,16.80189114,216.21,216.14,16.80189114]
[1731325625671,16.80189114,216.21,216.09,39.3354]
[1731325625672,16.80189114,216.2,216.13,16.80189114]
[1731325625984,16.80189114,216.19,216.12,16.80189114]
[1731325626160,11.5601,216.26,216.09,57.58781627]
[1731325626161,16.80189114,216.16,216.09,57.58781627]
[1731325626356,16.80189114,216.16,216.1,16.80189114]
[1731325626769,16.80189114,216.17,216.11,4.6272]
[1731325626974,16.80189114,216.18,216.11,32.99719114]
[1731325627180,16.80189114,216.19,216.12,16.80189114]
[1731325627973,16.80189114,216.18,216.11,32.99719114]
[1731325628355,4.6253,216.2,216.12,16.80189114]
[1731325628356,16.80189114,216.19,216.12,16.80189114]
[1731325628567,16.80189114,216.21,216.14,16.80189114]
[1731325628780,16.80189114,216.22,216.15,16.80189114]
[1731325629764,16.80189114,216.22,216.16,28.36739114]
[1731325630280,16.80189114,216.23,216.16,28.36739114]
[1731325630777,16.80189114,216.23,216.16,32.99359114]
[1731325631876,16.80189114,216.21,216.14,21.42849114]
[1731325632181,16.80189114,216.17,216.11,4.6272]
[1731325632668,16.80189114,216.18,216.11,21.42909114]
[1731325632863,16.1865,216.23,216.14,16.80189114]
[1731325632864,16.80189114,216.2,216.14,16.80189114]
[1731325633176,16.80189114,216.2,216.11,16.1953]
[1731325633177,16.80189114,216.2,216.13,16.80189114]
[1731325633486,16.80189114,216.21,216.15,16.80189114]
[1731325633857,16.80189114,216.21,216.16,4.6262]
[1731325634181,16.80189114,216.2,216.16,4.6262]
[1731325634681,16.80189114,216.22,216.16,16.1917]
[1731325635084,16.80189114,216.23,216.16,32.99359114]
[1731325636381,16.80189114,216.21,216.16,16.1917]
[1731325636677,16.80189114,216.17,216.12,16.1942]
[1731325637978,16.80189114,216.18,216.12,16.1942]
[1731325638962,16.80189114,216.16,216.1,32.99789114]
[1731325639158,16.1864,216.23,216.1,16.196]
[1731325639379,16.80189114,216.13,216.1,11.5687]
[1731325639595,16.80189114,216.17,216.1,28.37059114]
[1731325639889,40.57877514,216.16,216.1,11.5687]
[1731325640089,16.80189114,216.15,216.1,11.5687]
[1731325641290,23.776884,216.16,216.07,4.6279]
[1731325641503,16.80189114,216.14,216.07,21.42979114]
[1731325641869,16.80189114,216.13,216.07,4.6279]
[1731325642368,16.80189114,216.13,216.07,16.1982]
[1731325642576,16.80189114,216.11,216.07,11.5703]
[1731325642791,16.80189114,216.12,216.07,16.1984]
[1731325643000,16.80189114,216.13,216.07,16.1984]
[1731325643194,16.80189114,216.14,216.08,16.80189114]
[1731325643368,16.80189114,216.14,216.07,33.00029114]
[1731325643763,16.80189114,216.16,216.09,16.80189114]
[1731325643964,16.80189114,216.17,216.1,16.80189114]
[1731325644481,16.80189114,216.16,216.09,16.80189114]
[1731325644792,16.80189114,216.16,216.09,7.64134064]
[1731325644975,16.80189114,216.14,216.07,16.80189114]
[1731325645178,16.80189114,216.1,216.05,21.02236223]
[1731325645375,16.80189114,216.11,216.05,21.02236223]
[1731325645571,16.80189114,216.12,216.05,37.82425337]
[1731325645777,16.80189114,216.12,216.05,33.00169114]
[1731325646087,16.80189114,216.12,216.07,16.1984]
[1731325646897,16.80189114,216.14,216.07,33.00029114]
[1731325647073,16.80189114,216.16,216.09,16.80189114]
[1731325647474,16.80189114,216.16,216.1,16.80189114]
[1731325648189,16.80189114,216.17,216.11,16.1953]
[1731325648871,16.80189114,216.18,216.11,32.99719114]
[1731325649076,16.80189114,216.17,216.11,32.99719114]
[1731325649390,16.80189114,216.14,216.11,16.1953]
[1731325649590,16.80189114,216.13,216.11,11.5681]
[1731325650090,16.80189114,216.12,216.07,11.57]
[1731325650395,16.80189114,216.1,216.07,11.57]
[1731325651681,16.80189114,216.11,216.07,11.57]
[1731325652593,16.80189114,216.13,216.07,16.80189114]
[1731325652889,16.80189114,216.16,216.09,16.80189114]
[1731325653100,16.80189114,216.15,216.08,16.80189114]
[1731325653472,16.80189114,216.15,216.09,16.80189114]
[1731325653868,15.577,216.23,216.13,16.80189114]
[1731325654073,32.37889114,216.23,216.16,16.80189114]
[1731325654293,16.80189114,216.23,216.16,16.80189114]
[1731325654495,16.80189114,216.23,216.05,16.1998]
[1731325654496,16.80189114,216.17,216.05,16.1998]
[1731325654675,16.80189114,216.11,216.05,16.1998]
[1731325656494,16.80189114,216.14,216.06,16.80189114]
[1731325658081,16.80189114,216.14,216.08,16.1976]
[1731325658300,16.80189114,216.13,216.08,16.1976]
[1731325658884,16.80189114,216.13,216.08,11.5697]
[1731325659091,16.80189114,216.1,216.08,11.5697]
[1731325660196,11.7638,216.2,216.04,16.80189114]
[1731325660197,16.80189114,216.11,216.04,16.80189114]
[1731325661495,16.80189114,216.11,216.05,4.6285]
[1731325662079,16.80189114,216.08,216.05,11.5713]
[1731325662598,16.80189114,216.09,216.05,11.5713]
[1731325662788,16.80189114,216.1,216.05,16.1998]
[1731325662984,16.0197,216.12,216.05,16.1998]
[1731325662985,16.80189114,216.12,216.05,33.00169114]
[1731325663905,23.42109114,216.16,216.09,16.80189114]
[1731325664087,16.80189114,216.16,216.09,16.80189114]
[1731325665281,16.80189114,216.18,216.11,16.80189114]
[1731325665478,16.80189114,216.2,216.14,16.80189114]
[1731325665689,16.80189114,216.19,216.12,16.80189114]
[1731325665895,16.80189114,216.17,216.1,49.37919114]
[1731325666400,16.80189114,216.15,216.1,16.1961]
[1731325666603,16.80189114,216.16,216.1,16.1961]
[1731325667085,16.80189114,216.16,216.1,32.99799114]
[1731325669709,16.80189114,216.11,216.05,11.5712]
[1731325669886,16.80189114,216.08,216.05,16.1997]
[1731325670286,16.80189114,216.07,216.05,11.5712]
[1731325670786,16.80189114,216.06,216.03,4.6287]
[1731325670982,16.80189114,216.06,216.01,11.5734]
[1731325671205,30.0,216.04,216.01,11.5734]
[1731325671407,30.0,216.04,216.01,16.2028]
[1731325675396,46.80189114,216.04,216.01,16.2028]
[1731325675987,46.80189114,216.04,216.01,11.5734]
[1731325676491,30.0,216.04,216.01,11.5734]
[1731325678207,46.80189114,216.04,215.97,33.00769114]
[1731325680221,16.80189114,216.01,215.97,11.5756]
[1731325680513,16.80189114,215.98,215.93,30.094237]
[1731325680822,46.80189114,215.99,215.93,33.01059114]
[1731325681498,30.0,215.95,215.93,33.01059114]
[1731325681701,30.0,215.95,215.94,16.80189114]
[1731325682495,16.80189114,216.04,215.94,16.80189114]
[1731325682696,11.1692,216.06,215.93,16.2087]
[1731325682697,16.80189114,216.01,215.95,16.80189114]
[1731325683514,16.80189114,215.99,215.93,16.2087]
[1731325683719,16.80189114,215.99,215.93,28.37949114]
[1731325684021,16.80189114,216.0,215.93,28.37949114]
[1731325684438,16.80189114,216.01,215.94,16.80189114]
[1731325684596,4.6285,216.05,215.97,16.80189114]
[1731325684597,16.80189114,216.04,215.97,16.80189114]
[1731325685418,16.80189114,216.03,215.96,16.80189114]
[1731325685614,16.80189114,216.02,215.95,16.80189114]
[1731325685924,16.80189114,216.02,215.96,4.6304]
[1731325687195,16.80189114,216.0,215.96,4.6304]
[1731325687516,16.80189114,215.98,215.94,4.6307]
[1731325687708,16.80189114,215.99,215.94,4.6307]
[1731325688310,16.80189114,215.99,215.93,11.5776]
[1731325688619,16.80189114,215.99,215.93,16.2087]
[1731325689621,16.80189114,215.99,215.92,4.82689462]
[1731325689622,16.80189114,215.97,215.92,4.82689462]
[1731325689920,23.776884,216.05,215.93,16.80189114]
[1731325690128,16.80189114,215.99,215.93,16.80189114]
[1731325690425,16.80189114,215.98,215.92,16.2096]
[1731325691006,16.80189114,215.97,215.92,16.2096]
[1731325691313,16.80189114,215.96,215.92,16.2096]
[1731325691519,16.80189114,215.94,215.92,11.5783]
[1731325691709,16.80189114,215.95,215.92,11.5783]
[1731325691903,16.80189114,216.0,215.94,16.80189114]
[1731325692502,16.80189114,216.0,215.93,16.80189114]
[1731325692802,6.224,216.04,215.92,11.5783]
[1731325692803,16.80189114,215.98,215.92,11.5783]
[1731325693306,16.80189114,216.0,215.93,16.80189114]
[1731325693721,16.80189114,216.0,215.94,16.2081]
[1731325694105,6.224,216.04,215.97,16.80189114]
[1731325694306,16.80189114,216.05,215.98,16.80189114]
[1731325694609,6.2414,216.09,215.94,39.3626]
[1731325694610,16.80189114,216.04,215.97,16.80189114]
[1731325694922,16.80189114,216.06,216.0,16.80189114]
[1731325695120,16.80189114,216.07,216.0,16.80189114]
[1731325695436,15.0951,216.13,216.03,16.80189114]
[1731325695613,16.80189114,216.11,216.05,16.1998]
[1731325695804,16.80189114,216.1,216.05,16.1998]
[1731325696121,16.80189114,216.09,216.05,16.1998]
[1731325696718,16.80189114,216.1,216.05,16.1998]
[1731325696949,16.80189114,216.09,216.03,16.80189114]
[1731325697130,16.80189114,216.1,216.03,16.80189114]
[1731325697829,10.868,216.14,216.02,16.80189114]